fUSD/lending_fUSD_20240216
["ID","MTS","AMOUNT","RATE_DAILY","PERIOD"]
[314249203,1708119080941,-500.0,0.00049863,60]
[314249204,1708119080950,-500.0,0.00049863,60]
[314249205,1708119080959,-500.0,0.00049863,60]
[314249206,1708119080969,-500.0,0.00049863,60]
[314249207,1708119080978,-574.15,0.00049863,60]
[314249208,1708119080989,-500.0,0.00049863,60]
[314249209,1708119080999,-500.0,0.00049863,60]
[314249210,1708119081008,-1173.51,0.00049863,7]
[314249211,1708119081017,-500.0,0.00049863,60]
[314249212,1708119081027,-604.06,0.00049863,60]
[314249213,1708119081036,-617.63,0.00049863,60]
[314249214,1708119081045,-500.0,0.00049863,60]
[314249215,1708119081055,-500.0,0.00049863,60]
[314249216,1708119081064,-500.0,0.00049863,60]
[314249217,1708119081073,-500.0,0.00049863,60]
[314249218,1708119081250,-500.0,0.00049863,60]
[314249219,1708119081261,-500.0,0.00049863,60]
[314249220,1708119081271,-500.0,0.00049863,60]
[314249221,1708119081281,-500.0,0.00049863,60]
[314249222,1708119081290,-500.0,0.00049863,60]
[314249223,1708119081299,-500.0,0.00049863,60]
[314249224,1708119081309,-500.0,0.00049863,60]
[314249225,1708119081318,-840.32,0.00049863,2]
[314249226,1708119081328,-500.0,0.00049863,60]
[314249227,1708119081337,-511.02,0.00049863,60]
[314249228,1708119081346,-500.0,0.00049863,60]
[314249229,1708119081355,-551.0,0.00049863,60]
[314249230,1708119081365,-500.0,0.00049863,60]
[314249231,1708119081374,-500.0,0.00049863,60]
[314249232,1708119081383,-500.0,0.00049863,60]
[314249233,1708119081392,-2031.12,0.00049863,2]
[314249234,1708119081402,-500.0,0.00049863,60]
[314249235,1708119081412,-500.0,0.00049863,60]
[314249236,1708119081421,-608.56,0.00049863,60]
[314249237,1708119081431,-500.0,0.00049863,60]
[314249238,1708119081443,-500.0,0.00049863,60]
[314249239,1708119081452,-542.29,0.00049863,60]
[314249240,1708119081462,-500.0,0.00049863,60]
[314249241,1708119081472,-500.0,0.00049863,60]
[314249242,1708119081481,-500.0,0.00049863,60]
[314249243,1708119081491,-500.0,0.00049863,60]
[314249244,1708119081500,-500.0,0.00049863,60]
[314249245,1708119081510,-500.0,0.00049863,60]
[314249246,1708119081520,-500.0,0.00049863,60]
[314249247,1708119081529,-500.0,0.00049863,60]
[314249248,1708119081539,-500.0,0.00049863,60]
[314249249,1708119081548,-500.0,0.00049863,60]
[314249250,1708119081558,-662.34,0.00049863,60]
[314249251,1708119081568,-500.0,0.00049863,60]
[314249252,1708119081577,-500.0,0.00049863,60]
[314249253,1708119081586,-446.84015632,0.00049863,14]
[314249254,1708119081595,-500.0,0.00049863,60]
[314249255,1708119081604,-500.0,0.00049863,60]
[314249256,1708119081614,-500.0,0.00049863,60]
[314249257,1708119081623,-500.0,0.00049863,60]
[314249258,1708119081632,-725.97,0.00049863,60]
[314249259,1708119081641,-500.0,0.00049863,60]
[314249260,1708119081650,-500.0,0.00049863,60]
[314249261,1708119081659,-500.0,0.00049863,60]
[314249262,1708119081669,-862.39,0.00049863,60]
[314249263,1708119081678,-500.0,0.00049863,60]
[314249264,1708119081687,-500.0,0.00049863,60]
[314249265,1708119081698,-500.0,0.00049863,60]
[314249266,1708119081709,-500.0,0.00049863,60]
[314249267,1708119081718,-500.0,0.00049863,60]
[314249268,1708119081727,-500.0,0.00049863,120]
[314249269,1708119081736,-500.0,0.00049863,60]
[314249270,1708119081745,-500.0,0.00049863,60]
[314249271,1708119081753,-500.0,0.00049863,60]
[314249272,1708119081762,-500.0,0.00049863,60]
[314249273,1708119081771,-500.0,0.00049863,60]
[314249274,1708119081780,-500.0,0.00049863,60]
[314249275,1708119081792,-693.28,0.00049863,60]
[314249276,1708119081801,-500.0,0.00049863,60]
[314249277,1708119081810,-500.0,0.00049863,60]
[314249278,1708119081819,-500.0,0.00049863,60]
[314249279,1708119081829,-500.0,0.00049863,60]
[314249280,1708119081838,-703.48,0.00049863,60]
[314249281,1708119081847,-500.0,0.00049863,60]
[314249282,1708119081857,-500.0,0.00049863,60]
[314249283,1708119081866,-500.0,0.00049863,60]
[314249284,1708119081877,-500.0,0.00049863,60]
[314249285,1708119081886,-500.0,0.00049863,60]
[314249286,1708119081896,-566.58,0.00049863,60]
[314249287,1708119081905,-500.0,0.00049863,60]
[314249288,1708119081918,-500.0,0.00049863,60]
[314249289,1708119081928,-592.83373169,0.00049863,60]
[314249290,1708119081937,-500.0,0.00049863,60]
[314249291,1708119081947,-500.0,0.00049863,60]
[314249292,1708119081960,-1032.17,0.00049863,60]
[314249293,1708119081969,-536.17,0.00049863,60]
[314249294,1708119081979,-500.0,0.00049863,60]
[314249295,1708119081990,-500.0,0.00049863,60]
[314249296,1708119082000,-500.0,0.00049863,60]
[314249297,1708119082010,-500.0,0.00049863,60]
[314249298,1708119082019,-500.0,0.00049863,60]
[314249299,1708119082029,-986.8,0.00049863,60]
[314249300,1708119082038,-500.0,0.00049863,60]
[314249301,1708119082048,-457.63841942,0.00049863,60]
[314249302,1708119082057,-500.0,0.00049863,60]
[314249303,1708119082066,-539.44,0.00049863,60]
[314249304,1708119082076,-782.04,0.00049863,60]
[314249305,1708119082085,-500.0,0.00049863,60]
[314249306,1708119082094,-500.0,0.00049863,60]
[314249307,1708119082103,-500.0,0.00049863,60]
[314249308,1708119082113,-500.0,0.00049863,60]
[314249309,1708119082122,-500.94,0.00049863,60]
[314249310,1708119082131,-500.0,0.00049863,60]
[314249311,1708119082140,-500.0,0.00049863,60]
[314249312,1708119082149,-500.0,0.00049863,60]
[314249313,1708119082159,-500.0,0.00049863,60]
[314249314,1708119082169,-500.0,0.00049863,60]
[314249315,1708119082178,-500.0,0.00049863,60]
[314249316,1708119082187,-708.38,0.00049863,60]
[314249317,1708119082196,-500.0,0.00049863,60]
[314249318,1708119082206,-500.0,0.00049863,60]
[314249319,1708119082215,-515.61,0.00049863,60]
[314249320,1708119082224,-500.0,0.00049863,60]
[314249321,1708119082233,-500.0,0.00049863,60]
[314249322,1708119082243,-500.0,0.00049863,60]
[314249323,1708119082252,-500.0,0.00049863,60]
[314249324,1708119082261,-578.51,0.00049863,60]
[314249325,1708119082270,-184.24460802,0.00049863,60]
[314249326,1708119082279,-500.0,0.00049863,7]
[314249327,1708119082288,-500.0,0.00049863,60]
[314249328,1708119082297,-500.0,0.00049863,60]
[314249329,1708119082306,-500.0,0.00049863,60]
[314249330,1708119082315,-500.0,0.00049863,60]
[314249331,1708119082324,-500.0,0.00049863,60]
[314249332,1708119082333,-500.0,0.00049863,60]
[314249333,1708119082342,-940.09,0.00049863,60]
[314249334,1708119082351,-500.0,0.00049863,60]
[314249335,1708119082360,-500.0,0.00049863,60]
[314249336,1708119082369,-500.0,0.00049863,60]
[314249337,1708119082379,-500.0,0.00049863,60]
[314249338,1708119082388,-500.0,0.00049863,60]
[314249339,1708119082398,-500.0,0.00049863,60]
[314249340,1708119082407,-500.0,0.00049863,60]
[314249341,1708119082417,-500.0,0.00049863,60]
[314249342,1708119082426,-500.0,0.00049863,60]
[314249343,1708119082435,-816.62,0.00049863,60]
[314249344,1708119082446,-500.0,0.00049863,60]
[314249345,1708119082456,-500.0,0.00049863,60]
[314249346,1708119082465,-500.0,0.00049863,60]
[314249347,1708119082474,-500.0,0.00049863,60]
[314249348,1708119082483,-500.0,0.00049863,60]
[314249349,1708119082493,-500.0,0.00049863,60]
[314249350,1708119082503,-500.0,0.00049863,60]
[314249351,1708119082514,-642.11,0.00049863,60]
[314249352,1708119082524,-500.0,0.00049863,60]
[314249353,1708119082534,-500.0,0.00049863,60]
[314249354,1708119082545,-500.0,0.00049863,60]
[314249355,1708119082560,-500.0,0.00049863,60]
[314249356,1708119082569,-500.0,0.00049863,60]
[314249357,1708119082579,-500.0,0.00049863,60]
[314249358,1708119082588,-500.0,0.00049863,60]
[314249359,1708119082597,-500.0,0.00049863,60]
[314249360,1708119082606,-500.0,0.00049863,60]
[314249361,1708119082616,-500.0,0.00049863,60]
[314249362,1708119082625,-500.0,0.00049863,60]
[314249363,1708119082635,-500.0,0.00049863,60]
[314249364,1708119082644,-1167.88,0.00049863,60]
[314249365,1708119082653,-500.0,0.00049863,60]
[314249366,1708119082662,-500.0,0.00049863,60]
[314249367,1708119082671,-500.0,0.00049863,60]
[314249368,1708119082681,-500.0,0.00049863,60]
[314249369,1708119082691,-357.62192202,0.00049863,60]
[314249370,1708119082701,-500.0,0.00049863,60]
[314249371,1708119082710,-500.0,0.00049863,60]
[314249372,1708119082720,-500.0,0.00049863,60]
[314249373,1708119082729,-851.65,0.00049863,60]
[314249374,1708119082738,-500.0,0.00049863,60]
[314249375,1708119082751,-500.0,0.00049863,60]
[314249376,1708119082761,-500.0,0.00049863,60]
[314249377,1708119082771,-500.0,0.00049863,60]
[314249378,1708119082781,-500.0,0.00049863,60]
[314249379,1708119082790,-500.0,0.00049863,60]
[314249380,1708119082800,-500.0,0.00049863,60]
[314249381,1708119082809,-500.0,0.00049863,60]
[314249382,1708119082819,-500.0,0.00049863,60]
[314249383,1708119082828,-500.0,0.00049863,60]
[314249384,1708119082837,-500.0,0.00049863,60]
[314249385,1708119082847,-2216.52,0.00049863,60]
[314249386,1708119082856,-500.0,0.00049863,60]
[314249387,1708119082865,-500.0,0.00049863,60]
[314249388,1708119082875,-500.0,0.00049863,60]
[314249389,1708119082885,-500.0,0.00049863,60]
[314249390,1708119082894,-500.0,0.00049863,60]
[314249391,1708119082905,-500.0,0.00049863,60]
[314249392,1708119082918,-500.0,0.00049863,60]
[314249393,1708119082928,-500.0,0.00049863,60]
[314249394,1708119082937,-500.0,0.00049863,60]
[314249395,1708119082948,-694.71,0.00049863,60]
[314249396,1708119082958,-500.0,0.00049863,60]
[314249397,1708119082967,-500.0,0.00049863,60]
[314249398,1708119082977,-500.0,0.00049863,60]
[314249399,1708119082987,-500.0,0.00049863,60]
[314249400,1708119082996,-500.0,0.00049863,60]
[314249401,1708119083005,-500.0,0.00049863,60]
[314249402,1708119083015,-500.0,0.00049863,60]
[314249403,1708119083024,-500.0,0.00049863,60]
[314249404,1708119083034,-500.0,0.00049863,60]
[314249405,1708119083043,-2871.6,0.00049863,60]
[314249406,1708119083052,-500.0,0.00049863,60]
[314249407,1708119083062,-500.0,0.00049863,60]
[314249408,1708119083071,-557.78506152,0.00049863,60]
[314249409,1708119083080,-500.0,0.00049863,60]
[314249410,1708119083090,-500.0,0.00049863,60]
[314249411,1708119083099,-562.06,0.00049863,60]
[314249412,1708119083109,-500.0,0.00049863,60]
[314249413,1708119083118,-589.85,0.00049863,60]
[314249414,1708119083127,-500.0,0.00049863,60]
[314249415,1708119083136,-4734.58840568,0.00049863,60]
[314249416,1708119083145,-1083.11,0.00049863,60]
[314249417,1708119083155,-500.0,0.00049863,60]
[314249418,1708119083165,-500.0,0.00049863,60]
[314249419,1708119083175,-500.0,0.00049863,60]
[314249420,1708119083184,-500.0,0.00049863,30]
[314249421,1708119083195,-2574.8,0.00049863,60]
[314249422,1708119083205,-150.0,0.00049863,60]
[314249423,1708119083214,-500.0,0.00049863,60]
[314249424,1708119083223,-500.0,0.00049863,60]
[314249425,1708119083232,-500.0,0.00049863,60]
[314249426,1708119083242,-500.0,0.00049863,60]
[314249427,1708119083252,-890.17,0.00049863,60]
[314249428,1708119083261,-500.0,0.00049863,60]
[314249429,1708119083270,-1244.45,0.00049863,60]
[314249430,1708119083279,-500.0,0.00049863,60]
[314249431,1708119083288,-500.0,0.00049863,60]
[314249432,1708119083298,-500.0,0.00049863,60]
[314249433,1708119083307,-500.0,0.00049863,60]
[314249434,1708119083316,-500.0,0.00049863,60]
[314249435,1708119083326,-500.0,0.00049863,60]
[314249436,1708119083335,-250.0,0.00049863,60]
[314249437,1708119083344,-588.9,0.00049863,60]
[314249438,1708119083354,-1983.03,0.00049863,60]
[314249439,1708119083362,-500.0,0.00049863,60]
[314249440,1708119083372,-500.0,0.00049863,60]
[314249441,1708119083381,-500.0,0.00049863,60]
[314249442,1708119083391,-500.0,0.00049863,60]
[314249443,1708119083401,-500.0,0.00049863,60]
[314249444,1708119083410,-500.0,0.00049863,60]
[314249445,1708119083419,-1068.84,0.00049863,60]
[314249446,1708119083428,-500.0,0.00049863,60]
[314249447,1708119083438,-742.37,0.00049863,60]
[314249448,1708119083447,-500.0,0.00049863,60]
[314249449,1708119083456,-4400.67,0.00049863,60]
[314249450,1708119083466,-803.55,0.00049863,60]
[314249451,1708119083475,-500.0,0.00049863,60]
[314249452,1708119083485,-821.93,0.00049863,60]
[314249453,1708119083494,-500.0,0.00049863,60]
[314249454,1708119083503,-500.0,0.00049863,60]
[314249455,1708119083513,-500.0,0.00049863,60]
[314249456,1708119083522,-500.0,0.00049863,60]
[314249457,1708119083531,-538.03,0.00049863,60]
[314249458,1708119083704,-500.0,0.00049863,60]
[314249459,1708119083725,-500.0,0.00049863,60]
[314249460,1708119083734,-500.0,0.00049863,60]
[314249461,1708119083744,-500.0,0.00049863,60]
[314249462,1708119083753,-500.0,0.00049863,60]
[314249463,1708119083762,-3625.09,0.00049863,60]
[314249464,1708119083775,-500.0,0.00049863,60]
[314249465,1708119083785,-964.44,0.00049863,60]
[314249466,1708119083794,-500.0,0.00049863,60]
[314249467,1708119083803,-500.0,0.00049863,60]
[314249468,1708119083813,-1492.92,0.00049863,60]
[314249469,1708119083822,-2046.77,0.00049863,60]
[314249470,1708119083831,-500.0,0.00049863,60]
[314249471,1708119083841,-500.0,0.00049863,60]
[314249472,1708119083851,-500.0,0.00049863,60]
[314249473,1708119083860,-500.0,0.00049863,60]
[314249474,1708119083869,-802.5,0.00049863,60]
[314249475,1708119083879,-500.0,0.00049863,60]
[314249476,1708119083888,-610.16,0.00049863,60]
[314249477,1708119083898,-500.0,0.00049863,60]
[314249478,1708119083913,-500.0,0.00049863,60]
[314249479,1708119083922,-1066.34,0.00049863,60]
[314249480,1708119083931,-500.0,0.00049863,60]
[314249481,1708119083941,-797.01,0.00049863,60]
[314249482,1708119083956,-500.0,0.00049863,60]
[314249483,1708119083966,-3199.37,0.00049863,60]
[314249484,1708119083975,-500.0,0.00049863,60]
[314249485,1708119083986,-729.2,0.00049863,60]
[314249486,1708119083995,-500.0,0.00049863,60]
[314249487,1708119084005,-24352.15,0.00049863,60]
[314249488,1708119084014,-1397.78,0.00049863,60]
[314249489,1708119084023,-500.0,0.00049863,60]
[314249490,1708119084034,-500.0,0.00049863,60]
[314249491,1708119084043,-500.0,0.00049863,60]
[314249492,1708119084053,-500.0,0.00049863,60]
[314249493,1708119084063,-500.0,0.00049863,60]
[314249494,1708119084073,-2225.09,0.00049863,60]
[314249495,1708119084082,-500.0,0.00049863,60]
[314249496,1708119084091,-500.0,0.00049863,60]
[314249497,1708119084103,-3059.93,0.00049863,60]
[314249498,1708119084117,-500.0,0.00049863,60]
[314249499,1708119084127,-663.32,0.00049863,60]
[314249500,1708119084137,-500.0,0.00049863,60]
[314249501,1708119084146,-559.03,0.00049863,60]
[314249502,1708119084156,-500.0,0.00049863,60]
[314249503,1708119084165,-500.0,0.00049863,60]
[314249504,1708119084175,-500.0,0.00049863,60]
[314249505,1708119084185,-500.0,0.00049863,60]
[314249506,1708119084196,-500.0,0.00049863,60]
[314249507,1708119084206,-500.0,0.00049863,60]
[314249508,1708119084215,-3189.76,0.00049863,60]
[314249509,1708119084231,-2572.92,0.00049863,60]
[314249510,1708119084241,-1075.21,0.00049863,60]
[314249511,1708119084250,-500.0,0.00049863,60]
[314249512,1708119084260,-500.0,0.00049863,60]
[314249513,1708119084269,-500.0,0.00049863,60]
[314249514,1708119084279,-500.0,0.00049863,60]
[314249515,1708119084289,-4525.95,0.00049863,60]
[314249516,1708119084298,-648.82,0.00049863,60]
[314249517,1708119084307,-5354.43,0.00049863,60]
[314249518,1708119084317,-703.45,0.00049863,60]
[314249519,1708119084326,-1211.83,0.00049863,60]
[314249520,1708119084336,-500.0,0.00049863,60]
[314249521,1708119084345,-871.55,0.00049863,60]
[314249522,1708119084355,-609.42,0.00049863,60]
[314249523,1708119084364,-1231.04,0.00049863,60]
[314249524,1708119084374,-737.52,0.00049863,60]
[314249525,1708119084384,-591.52,0.00049863,60]
[314249526,1708119084393,-719.76,0.00049863,60]
[314249527,1708119084403,-2765.99,0.00049863,60]
[314249528,1708119084412,-500.0,0.00049863,60]
[314249529,1708119084422,-1575.91,0.00049863,60]
[314249530,1708119084432,-500.0,0.00049863,60]
[314249531,1708119084445,-500.0,0.00049863,60]
[314249532,1708119084455,-868.38,0.00049863,60]
[314249533,1708119084465,-606.97,0.00049863,60]
[314249534,1708119084475,-9546.8,0.00049863,60]
[314249535,1708119084484,-500.0,0.00049863,60]
[314249536,1708119084494,-2411.87,0.00049863,60]
[314249537,1708119084503,-500.0,0.00049863,60]
[314249538,1708119084513,-500.0,0.00049863,60]
[314249539,1708119084523,-500.0,0.00049863,60]
[314249540,1708119084533,-500.0,0.00049863,60]
[314249541,1708119084542,-500.0,0.00049863,60]
[314249542,1708119084554,-570.56,0.00049863,60]
[314249543,1708119084564,-1028.79,0.00049863,60]
[314249544,1708119084574,-500.0,0.00049863,60]
[314249545,1708119084584,-1081.67,0.00049863,60]
[314249546,1708119084594,-500.0,0.00049863,60]
[314249547,1708119084603,-500.0,0.00049863,60]
[314249548,1708119084613,-500.0,0.00049863,60]
[314249549,1708119084622,-500.0,0.00049863,60]
[314249550,1708119084632,-8340.13,0.00049863,60]
[314249551,1708119084642,-500.0,0.00049863,60]
[314249552,1708119084651,-6395.6,0.00049863,14]
[314249553,1708119084661,-500.0,0.00049863,60]
[314249554,1708119084670,-500.0,0.00049863,60]
[314249555,1708119084680,-500.0,0.00049863,60]
[314249556,1708119084692,-500.0,0.00049863,60]
[314249557,1708119084701,-500.0,0.00049863,60]
[314249558,1708119084713,-500.0,0.00049863,7]
[314249559,1708119084723,-2287.27,0.00049863,60]
[314249560,1708119084733,-542.74,0.00049863,60]
[314249561,1708119084742,-500.0,0.00049863,60]
[314249562,1708119084752,-500.0,0.00049863,60]
[314249563,1708119084762,-1517.81,0.00049863,60]
[314249564,1708119084772,-520.3,0.00049863,60]
[314249565,1708119084782,-500.0,0.00049863,60]
[314249566,1708119084792,-500.0,0.00049863,60]
[314249567,1708119084803,-7477.21,0.00049863,60]
[314249568,1708119084812,-500.0,0.00049863,60]
[314249569,1708119084822,-714.64,0.00049863,60]
[314249570,1708119084831,-500.0,0.00049863,60]
[314249571,1708119084841,-630.12,0.00049863,60]
[314249572,1708119084867,-500.0,0.00049863,60]
[314249573,1708119084886,-500.0,0.00049863,60]
[314249574,1708119084906,-500.0,0.00049863,60]
[314249575,1708119084931,-500.0,0.00049863,60]
[314249576,1708119084949,-722.94,0.00049863,60]
[314249577,1708119084970,-500.0,0.00049863,60]
[314249578,1708119084988,-910.24,0.00049863,60]
[314249579,1708119085008,-500.0,0.00049863,60]
[314249580,1708119085028,-3306.89,0.00049863,60]
[314249581,1708119085047,-500.0,0.00049863,60]
[314249582,1708119085072,-544.82,0.00049863,60]
[314249583,1708119085088,-5810.7,0.00049863,60]
[314249584,1708119085105,-308.69893376,0.00049863,60]
[314249585,1708119085124,-2333.25,0.00049863,60]
[314249586,1708119085140,-500.0,0.00049863,60]
[314249587,1708119085158,-1821.43,0.00049863,60]
[314249588,1708119085175,-500.0,0.00049863,60]
[314249589,1708119085192,-1107.39,0.00049863,60]
[314249590,1708119085210,-500.0,0.00049863,60]
[314249591,1708119085232,-3684.25,0.00049863,60]
[314249592,1708119085249,-583.02,0.00049863,60]
[314249593,1708119085266,-500.0,0.00049863,30]
[314249594,1708119085282,-500.0,0.00049863,60]
[314249595,1708119085298,-500.0,0.00049863,60]
[314249596,1708119085314,-673.09,0.00049863,60]
[314249597,1708119085331,-500.0,0.00049863,60]
[314249598,1708119085347,-530.67,0.00049863,60]
[314249599,1708119085363,-500.0,0.00049863,60]
[314249600,1708119085378,-500.0,0.00049863,60]
[314249601,1708119085395,-500.0,0.00049863,60]
[314249602,1708119085411,-500.0,0.00049863,60]
[314249603,1708119085426,-500.0,0.00049863,60]
[314249604,1708119085441,-868.96,0.00049863,60]
[314249605,1708119085457,-500.0,0.00049863,60]
[314249606,1708119085474,-500.0,0.00049863,60]
[314249607,1708119085488,-688.48,0.00049863,60]
[314249608,1708119085504,-2624.63,0.00049863,60]
[314249609,1708119085519,-500.0,0.00049863,60]
[314249610,1708119085533,-500.0,0.00049863,60]
[314249611,1708119085552,-842.25,0.00049863,60]
[314249612,1708119085566,-500.0,0.00049863,60]
[314249613,1708119085581,-905.88,0.00049863,60]
[314249614,1708119085596,-500.0,0.00049863,60]
[314249615,1708119085611,-500.0,0.00049863,60]
[314249616,1708119085627,-500.0,0.00049863,60]
[314249617,1708119085641,-1344.54,0.00049863,60]
[314249618,1708119085657,-500.0,0.00049863,60]
[314249619,1708119085672,-842.36,0.00049863,2]
[314249620,1708119085687,-2942.14,0.00049863,60]
[314249621,1708119085703,-505.82,0.00049863,60]
[314249622,1708119085719,-500.0,0.00049863,60]
[314249623,1708119085734,-2570.64,0.00049863,60]
[314249624,1708119085749,-2688.02,0.00049863,60]
[314249625,1708119085765,-2260.09,0.00049863,60]
[314249626,1708119085780,-500.0,0.00049863,60]
[314249627,1708119085794,-500.0,0.00049863,60]
[314249628,1708119085810,-716.26,0.00049863,60]
[314249629,1708119085826,-597.05280976,0.00049863,14]
[314249630,1708119085846,-924.33,0.00049863,60]
[314249631,1708119085863,-500.0,0.00049863,60]
[314249632,1708119085878,-500.0,0.00049863,60]
[314249633,1708119085893,-657.39,0.00049863,60]
[314249634,1708119085909,-500.0,0.00049863,60]
[314249635,1708119085925,-2023.51,0.00049863,60]
[314249636,1708119085940,-1625.46,0.00049863,60]
[314249637,1708119085956,-506.3,0.00049863,60]
[314249638,1708119085971,-500.0,0.00049863,60]
[314249639,1708119085987,-953.19,0.00049863,60]
[314249640,1708119086003,-680.83,0.00049863,60]
[314249641,1708119086017,-500.0,0.00049863,60]
[314249642,1708119086033,-1719.81,0.00049863,60]
[314249643,1708119086048,-586.01,0.00049863,60]
[314249644,1708119086064,-562.1,0.00049863,60]
[314249645,1708119086079,-582.82,0.00049863,60]
[314249646,1708119086094,-659.84,0.00049863,60]
[314249647,1708119086109,-500.0,0.00049863,60]
[314249648,1708119086124,-4202.04,0.00049863,60]
[314249649,1708119086139,-7068.33,0.00049863,60]
[314249650,1708119086154,-500.0,0.00049863,60]
[314249651,1708119086170,-500.0,0.00049863,60]
[314249652,1708119086186,-500.0,0.00049863,60]
[314249653,1708119086200,-508.17083826,0.00049863,60]
[314249654,1708119086215,-2643.96,0.00049863,60]
[314249655,1708119086231,-500.0,0.00049863,60]
[314249656,1708119086246,-500.0,0.00049863,60]
[314249657,1708119086261,-600.0,0.00049863,60]
[314249658,1708119086276,-1183.13,0.00049863,60]
[314249659,1708119086290,-500.0,0.00049863,60]
[314249660,1708119086305,-1949.14,0.00049863,60]
[314249661,1708119086319,-500.0,0.00049863,60]
[314249662,1708119086334,-1927.89,0.00049863,60]
[314249663,1708119086349,-566.21,0.00049863,60]
[314249664,1708119086364,-500.0,0.00049863,60]
[314249665,1708119086379,-699.96,0.00049863,60]
[314249666,1708119086394,-1200.81,0.00049863,60]
[314249667,1708119086409,-500.0,0.00049863,60]
[314249668,1708119086424,-500.0,0.00049863,60]
[314249669,1708119086439,-3348.01,0.00049863,60]
[314249670,1708119086454,-500.0,0.00049863,60]
[314249671,1708119086469,-500.0,0.00049863,60]
[314249672,1708119086485,-1872.95,0.00049863,60]
[314249673,1708119086501,-529.58,0.00049863,60]
[314249674,1708119086511,-500.0,0.00049863,60]
[314249675,1708119086520,-716.71,0.00049863,60]
[314249676,1708119086529,-693.17,0.00049863,60]
[314249677,1708119086539,-1099.89,0.00049863,60]
[314249678,1708119086548,-500.0,0.00049863,60]
[314249679,1708119086812,-500.0,0.00049863,60]
[314249680,1708119086840,-500.0,0.00049863,60]
[314249681,1708119086860,-552.07,0.00049863,60]
[314249682,1708119086869,-1791.39,0.00049863,60]
[314249683,1708119086878,-500.0,0.00049863,60]
[314249684,1708119086888,-573.51,0.00049863,60]
[314249685,1708119086897,-777.88,0.00049863,60]
[314249686,1708119086908,-500.0,0.00049863,60]
[314249687,1708119086919,-500.0,0.00049863,60]
[314249688,1708119086928,-1055.53,0.00049863,60]
[314249689,1708119086938,-722.67,0.00049863,60]
[314249690,1708119086948,-1887.23,0.00049863,60]
[314249691,1708119086957,-500.0,0.00049863,60]
[314249692,1708119086966,-500.0,0.00049863,60]
[314249693,1708119086976,-674.89,0.00049863,60]
[314249694,1708119086985,-224.913742,0.00049863,2]
[314249695,1708119086997,-2198.11,0.00049863,60]
[314249696,1708119087006,-10000.0,0.00049863,60]
[314249697,1708119087018,-8115.72,0.00049863,60]
[314249698,1708119087027,-500.0,0.00049863,60]
[314249699,1708119087037,-701.75,0.00049863,60]
[314249700,1708119087047,-500.0,0.00049863,60]
[314249701,1708119087057,-224.913742,0.00049863,2]
[314249702,1708119087066,-500.0,0.00049863,60]